[Event "Gideon Japhet ACP Open 2018"]
[Site "Jerusalem"]
[Date "2018.07.01"]
[Round "1"]
[White "Ben Ari, Yannay"]
[Black "Ushenina, Anna"]
[Result "*"]
[ECO "B01"]
[WhiteElo "2069"]
[BlackElo "2447"]
[Annotator "ChessBase"]
[PlyCount "72"]
[EventDate "2018.07.01"]
[EventType "swiss"]
[EventCountry "ISR"]
[SourceTitle "playchess.com"]
[Source "ChessBase"]
[SourceQuality "1"]
[TimeControl "40/5400+30:1800+30"]

1. e4 {[%emt 0:40:14]} d5 {[%emt 0:40:17]} 2. exd5 {[%emt 0:00:25]} Nf6 {[%emt 0:00:25]} 3. c4 {[%emt 0:00:49]} c6 {[%emt 0:00:27]} 4. d4 {[%emt 0:01:07]} cxd5 {[%emt 0:00:28]} 5. cxd5 {[%emt 0:00:27]} Nxd5 {[%emt 0:00:30]} 6. Bc4 {[%emt 0:00:56]} Nc6 {[%emt 0:01:30]} 7. Nc3 {[%emt 0:04:24]} Nb6 {[%emt 0:03:11]} 8. Bb5 {[%emt 0:01:32]} Bd7 {[%emt 0:00:29]} 9. Nf3 {[%emt 0:01:23]} a6 {[%emt 0:01:20]} 10. Bxc6 {[%emt 0:02:31]} Bxc6 {[%emt 0:00:31]} 11. O-O {[%emt 0:01:22]} g6 {[%emt 0:03:03]} 12. Ne5 {[%emt 0:05:07]} Bd5 {[%emt 0:00:40]} 13. Nxd5 {[%emt 0:04:23]} Qxd5 {[%emt 0:00:37]} 14. Be3 {[%emt 0:02:38]} Bg7 {[%emt 0:00:50]} 15. Re1 {[%emt 0:02:28]} O-O {[%emt 0:00:38]} 16. Qf3 {[%emt 0:02:45]} Qxf3 {[%emt 0:03:43]} 17. Nxf3 {[%emt 0:00:47]} Nd5 {[%emt 0:01:03]} 18. Bd2 {[%emt 0:01:22]} Rfd8 {[%emt 0:00:44]} 19. Rac1 {[%emt 0:01:28]} e6 {[%emt 0:04:15]} 20. g3 {[%emt 0:02:11]} Rdc8 {[%emt 0:03:03]} 21. b3 {[%emt 0:02:16]} Bf8 {[%emt 0:01:40]} 22. Bg5 {[%emt 0:15:58]} Nb4 {[%emt 0:02:38]} 23. Rc4 {[%emt 0:02:08]} b5 {[%emt 0:01:43]} 24. Rxc8 {[%emt 0:01:23]} Rxc8 {[%emt 0:00:24]} 25. Rc1 {[%emt 0:00:35]} Rxc1+ {[%emt 0:01:30]} 26. Bxc1 {[%emt 0:00:23]} Nxa2 {[%emt 0:00:30]} 27. Be3 {[%emt 0:00:41]} Nb4 {[%emt 0:02:19]} 28. Bd2 {[%emt 0:00:53]} Nc6 {[%emt 0:00:28]} 29. Bc3 {[%emt 0:00:35]} a5 {[%emt 0:02:43]} 30. Kf1 {[%emt 0:00:28]} a4 {[%emt 0:00:26]} 31. bxa4 {[%emt 0:00:36]} bxa4 {[%emt 0:00:25]} 32. Ke1 {[%emt 0:00:32]} Bb4 {[%emt 0:01:09]} 33. Bxb4 {[%emt 0:00:31]} Nxb4 {[%emt 0:00:23]} 34. Kd1 {[%emt 0:00:35]} Nd3 {[%emt 0:01:53]} 35. Ke2 {[%emt 0:00:47]} a3 {[%emt 0:00:36]} 36. Nd2 {[%emt 0:00:46]} Nc1+ {[%emt 0:00:29]} *

[Event "Gideon Japhet ACP Open 2018"]
[Site "Jerusalem"]
[Date "2018.07.01"]
[Round "1"]
[White "Ben Ari, Yannay"]
[Black "Ushenina, Anna"]
[Result "0-1"]
[ECO "B24"]
[WhiteElo "2069"]
[BlackElo "2447"]
[Annotator "ChessBase"]
[PlyCount "66"]
[EventDate "2018.07.01"]
[EventType "swiss"]
[EventCountry "ISR"]
[SourceTitle "playchess.com"]
[Source "ChessBase"]
[SourceQuality "1"]
[TimeControl "40/5400+30:1800+30"]

1. e4 {[%emt 0:40:09]} c5 {[%emt 0:02:17]} 2. Nc3 {[%emt 0:00:00]} Nc6 {[%emt 0:00:48]} 3. g3 {[%emt 0:00:00]} g6 {[%emt 0:00:03]} 4. Bg2 {[%emt 0:00:00]} Bg7 {[%emt 0:02:48]} 5. Nge2 {[%emt 0:00:00]} d6 {[%emt 0:01:31]} 6. O-O {[%emt 0:00:00]} Rb8 {[%emt 0:04:43]} 7. d3 {[%emt 0:00:00]} b5 {[%emt 0:05:23]} 8. f4 {[%emt 0:00:00]} e6 {[%emt 0:15:47]} 9. Be3 {[%emt 0:06:25]} b4 {[%emt 0:14:48]} 10. Na4 {[%emt 0:13:29]} Nd4 {[%emt 0:15:24]} 11. a3 Bd7 {[%emt 0:08:41]} 12. Bxd4 {[%emt 0:07:47]} cxd4 {[%emt 0:00:59]} 13. axb4 {[%emt 0:00:16]} Rxb4 {[%emt 0:00:24]} 14. c3 {[%emt 0:01:49]} dxc3 {[%emt 0:02:26]} 15. bxc3 {[%emt 0:01:08]} Rb8 {[%emt 0:00:06]} 16. d4 {[%emt 0:02:52]} Ne7 {[%emt 0:03:34]} 17. e5 {[%emt 0:05:50]} O-O {[%emt 0:02:29]} 18. c4 {[%emt 0:13:06]} Nf5 {[%emt 0:01:28]} 19. Rf3 {[%emt 0:01:33]} Rb4 {[%emt 0:06:43]} 20. c5 {[%emt 0:02:14]} Bxa4 {[%emt 0:00:40]} 21. Rxa4 {[%emt 0:00:07]} dxc5 {[%emt 0:00:14]} 22. Rxa7 {[%emt 0:03:00]} Qb6 {[%emt 0:02:10]} 23. Ra1 {[%emt 0:00:28]} Nxd4 {[%emt 0:01:52]} 24. Nxd4 {[%emt 0:00:17]} Rxd4 {[%emt 0:00:04]} 25. Qc2 {[%emt 0:00:52]} Rfd8 {[%emt 0:00:33]} 26. Rc1 {[%emt 0:00:34]} Bf8 {[%emt 0:01:45]} 27. Rf2 {[%emt 0:00:50]} c4 {[%emt 0:00:39]} 28. Kh1 {[%emt 0:00:09]} Bb4 {[%emt 0:00:49]} 29. Rb1 {[%emt 0:00:10]} c3 {[%emt 0:00:49]} 30. Qxc3 {[%emt 0:00:42]} Rd1+ {[%emt 0:00:11]} 31. Rf1 {[%emt 0:00:02]} Rxf1+ {[%emt 0:01:37]} 32. Bxf1 {[%emt 0:00:03]} Qb7+ {[%emt 0:00:03]} 33. Kg1 {[%emt 0:01:17]} Qa7+ {[%emt 0:00:02]} 0-1

[Event "Gideon Japhet ACP Open 2018"]
[Site "Jerusalem"]
[Date "2018.07.01"]
[Round "1"]
[White "Kwossek, Georg"]
[Black "Erenberg, Ariel"]
[Result "1/2-1/2"]
[ECO "A46"]
[WhiteElo "2043"]
[BlackElo "2393"]
[Annotator "NA"]
[PlyCount "64"]
[EventDate "2018.07.01"]
[EventType "swiss"]
[EventCountry "ISR"]
[SourceTitle "playchess.com"]
[Source "ChessBase"]
[SourceQuality "1"]
[TimeControl "40/5400+30:1800+30"]

1. d4 {[%emt 0:00:00]} Nf6 {[%emt 0:00:02]} 2. Nf3 {[%emt 0:00:00]} e6 {[%emt 0:00:32]} 3. g3 {[%emt 0:00:12]} b5 {[%emt 0:02:21]} 4. Bg2 {[%emt 0:00:07]} Bb7 {[%emt 0:00:04]} 5. O-O {[%emt 0:00:06]} Be7 {[%emt 0:00:31]} 6. a4 {[%emt 0:00:09]} b4 {[%emt 0:00:56]} 7. c4 {[%emt 0:00:15]} O-O {[%emt 0:02:22]} 8. Nbd2 {[%emt 0:01:51]} d6 {[%emt 0:03:16]} 9. Qc2 {[%emt 0:04:22]} Nbd7 {[%emt 0:05:35]} 10. a5 {[%emt 0:09:33]} Rc8 {[%emt 0:01:54]} 11. a6 {[%emt 0:08:23]} Ba8 {[%emt 0:00:28]} 12. e4 {[%emt 0:00:43]} e5 {[%emt 0:07:18]} 13. c5 {[%emt 0:06:21]} exd4 {[%emt 0:04:04]} 14. c6 {[%emt 0:00:44] [#]} d3 $1 {[%emt 0:03:15]} 15. Qc4 {[%emt 0:10:04]} Ne5 {[%emt 0:05:02]} 16. Nxe5 {[%emt 0:02:19]} dxe5 {[%emt 0:00:02]} 17. Nf3 {[%emt 0:00:25]} Qd6 {[%emt 0:01:36]} 18. Be3 $15 {[%emt 0:17:38]} Qxc6 {[%emt 0:10:24]} 19. Qxc6 {[%emt 0:02:01]} Bxc6 {[%emt 0:00:01]} 20. Nxe5 {[%emt 0:00:06]} Bxe4 {[%emt 0:03:22]} 21. Bxe4 {[%emt 0:03:56]} Nxe4 {[%emt 0:00:02]} 22. Nc6 {[%emt 0:00:29]} Bf6 {[%emt 0:03:00]} 23. Bxa7 {[%emt 0:09:17]} Ra8 {[%emt 0:05:12]} 24. Bd4 {[%emt 0:11:37]} Bxd4 {[%emt 0:05:08]} 25. Nxd4 {[%emt 0:00:04]} c5 {[%emt 0:03:33]} 26. Nb5 {[%emt 0:02:11]} Rfb8 {[%emt 0:06:06]} 27. Ra5 {[%emt 0:01:54]} Nd2 {[%emt 0:02:16]} 28. Nc7 {[%emt 0:06:31]} Nxf1 {[%emt 0:05:31]} 29. Kxf1 {[%emt 0:00:24]} Ra7 {[%emt 0:01:41]} 30. Rxc5 {[%emt 0:01:34]} d2 {[%emt 0:03:36]} 31. Ke2 {[%emt 0:00:19]} Rc8 {[%emt 0:00:06]} 32. Nb5 {[%emt 0:00:50]} Re7+ {[%emt 0:00:24]} 1/2-1/2

[Event "Gideon Japhet ACP Open 2018"]
[Site "Jerusalem"]
[Date "2018.07.02"]
[Round "2"]
[White "Yuffa, Daniil"]
[Black "Kudischewitsch, David"]
[Result "1-0"]
[ECO "D16"]
[WhiteElo "2577"]
[BlackElo "2356"]
[Annotator "ChessBase"]
[PlyCount "103"]
[EventDate "2018.07.01"]
[EventType "swiss"]
[EventCountry "ISR"]
[SourceTitle "playchess.com"]
[Source "ChessBase"]
[SourceQuality "1"]
[TimeControl "40/5400+30:1800+30"]

1. d4 {[%emt 0:00:00]} Nf6 {[%emt 0:00:00]} 2. c4 {[%emt 0:00:00]} c6 {[%emt 0:00:02]} 3. Nc3 {[%emt 0:02:24]} d5 {[%emt 0:00:23]} 4. Nf3 {[%emt 0:00:06]} dxc4 {[%emt 0:00:09]} 5. a4 {[%emt 0:00:04]} e6 {[%emt 0:02:27]} 6. e4 {[%emt 0:00:06]} Bb4 {[%emt 0:00:17]} 7. e5 {[%emt 0:00:12]} Nd5 {[%emt 0:00:05]} 8. Bd2 {[%emt 0:00:31]} b5 {[%emt 0:01:17]} 9. axb5 {[%emt 0:00:07]} Bxc3 {[%emt 0:00:05]} 10. bxc3 {[%emt 0:00:04]} cxb5 {[%emt 0:00:05]} 11. Ng5 {[%emt 0:00:24]} Qc7 {[%emt 0:03:20]} 12. Qh5 {[%emt 0:02:40]} h6 {[%emt 0:04:54]} 13. Ne4 {[%emt 0:03:22]} Kf8 {[%emt 0:03:08]} 14. Nd6 {[%emt 0:03:39]} a6 {[%emt 0:00:06]} 15. h4 {[%emt 0:04:35]} Ra7 {[%emt 0:01:12]} 16. Rh3 {[%emt 0:00:41]} Nc6 {[%emt 0:00:06]} 17. Rf3 {[%emt 0:03:13]} Nd8 {[%emt 0:00:56]} 18. Bg5 {[%emt 0:00:43]} g6 {[%emt 0:01:52]} 19. Qxg6 {[%emt 0:00:19]} hxg5 {[%emt 0:00:16]} 20. Qxg5 {[%emt 0:01:51]} f6 {[%emt 0:08:23]} 21. Rxf6+ {[%emt 0:10:58]} Nxf6 {[%emt 0:00:17]} 22. Qxf6+ {[%emt 0:00:07]} Kg8 {[%emt 0:01:09]} 23. Kd2 {[%emt 0:09:12]} Rh7 {[%emt 0:02:03]} 24. Qg6+ {[%emt 0:09:42]} Kh8 {[%emt 0:03:31]} 25. Qf6+ {[%emt 0:06:50]} Kg8 {[%emt 0:00:10]} 26. Qg6+ {[%emt 0:07:00]} Kh8 {[%emt 0:00:02]} 27. Re1 {[%emt 0:00:17]} Nf7 {[%emt 0:02:53]} 28. Ne8 {[%emt 0:04:46]} Qd8 {[%emt 0:00:16]} 29. Nf6 {[%emt 0:02:21]} Nxe5 {[%emt 0:00:36]} 30. Rxe5 {[%emt 0:00:15]} Qf8 {[%emt 0:04:38]} 31. Rg5 {[%emt 0:06:23]} Rag7 {[%emt 0:00:39]} 32. Rh5 {[%emt 0:00:10]} Qf7 {[%emt 0:00:47]} 33. Qxf7 {[%emt 0:01:52]} Rxf7 {[%emt 0:00:04]} 34. Nxh7 {[%emt 0:00:13]} Rxh7 {[%emt 0:00:14]} 35. Be2 {[%emt 0:01:49]} Rxh5 {[%emt 0:00:16]} 36. Bxh5 {[%emt 0:00:04]} Bb7 {[%emt 0:01:02]} 37. g3 {[%emt 0:01:09]} Kg7 {[%emt 0:00:07]} 38. f4 {[%emt 0:02:08]} a5 {[%emt 0:00:29]} 39. Be8 {[%emt 0:00:43]} b4 {[%emt 0:00:05]} 40. g4 {[%emt 0:01:28]} Be4 {[%emt 0:03:23]} 41. g5 {[%emt 0:31:55]} Kf8 {[%emt 0:34:19]} 42. Bb5 {[%emt 0:00:53]} Bd3 {[%emt 0:00:05]} 43. h5 {[%emt 0:00:40]} Kf7 {[%emt 0:00:26]} 44. Bc6 {[%emt 0:03:00]} Ke7 {[%emt 0:00:34]} 45. Bf3 {[%emt 0:03:41]} b3 {[%emt 0:00:29]} 46. Kc1 {[%emt 0:00:09]} Kf7 {[%emt 0:00:22]} 47. Kb2 {[%emt 0:00:05]} Ke7 {[%emt 0:00:08]} 48. d5 {[%emt 0:02:20]} exd5 {[%emt 0:00:20]} 49. Bxd5 {[%emt 0:00:04]} Be2 {[%emt 0:00:05]} 50. f5 {[%emt 0:00:49]} Bxh5 {[%emt 0:01:22]} 51. Bxc4 {[%emt 0:00:15]} a4 {[%emt 0:00:14]} 52. Bb5 {[%emt 0:00:27] Ke8} 1-0

[Event "Gideon Japhet ACP Open 2018"]
[Site "Jerusalem"]
[Date "2018.07.02"]
[Round "2"]
[White "Boruchovsky, Avital"]
[Black "Gurbanov, Andrei"]
[Result "1-0"]
[ECO "C61"]
[WhiteElo "2558"]
[BlackElo "2335"]
[Annotator "ChessBase"]
[PlyCount "93"]
[EventDate "2018.07.01"]
[EventType "swiss"]
[EventCountry "ISR"]
[SourceTitle "playchess.com"]
[Source "ChessBase"]
[SourceQuality "1"]
[TimeControl "40/5400+30:1800+30"]

1. e4 {[%emt 0:00:00]} e5 {[%emt 0:00:00]} 2. Nf3 {[%emt 0:00:00]} Nc6 {[%emt 0:00:00]} 3. Bb5 {[%emt 0:00:00]} Nd4 {[%emt 0:00:00]} 4. Nxd4 {[%emt 0:00:23]} exd4 {[%emt 0:00:00]} 5. Bc4 {[%emt 0:00:08]} h5 {[%emt 0:00:40]} 6. d3 {[%emt 0:01:52]} Bc5 {[%emt 0:00:54]} 7. Qf3 {[%emt 0:03:51]} Qf6 {[%emt 0:03:43]} 8. Nd2 {[%emt 0:04:39]} c6 {[%emt 0:05:47]} 9. a3 {[%emt 0:03:49]} Ne7 {[%emt 0:07:03]} 10. b4 {[%emt 0:01:35]} Bb6 {[%emt 0:00:19]} 11. Bb2 {[%emt 0:05:46]} d5 {[%emt 0:08:11]} 12. Qxf6 {[%emt 0:02:47]} gxf6 {[%emt 0:00:08]} 13. exd5 {[%emt 0:00:34]} cxd5 {[%emt 0:00:05]} 14. Bb5+ {[%emt 0:00:04]} Kf8 {[%emt 0:00:13]} 15. Nf3 {[%emt 0:02:14]} Nf5 {[%emt 0:00:35]} 16. O-O {[%emt 0:00:53]} Be6 {[%emt 0:00:34]} 17. Rfe1 {[%emt 0:01:19]} Ke7 {[%emt 0:02:24]} 18. Ba4 {[%emt 0:01:15]} Rac8 {[%emt 0:04:07]} 19. Re2 {[%emt 0:00:48]} Rhg8 {[%emt 0:01:00]} 20. Kh1 {[%emt 0:01:41]} Rg4 {[%emt 0:01:15]} 21. h3 {[%emt 0:01:25]} Rg6 {[%emt 0:01:22]} 22. Bb3 {[%emt 0:02:00]} Kd7 {[%emt 0:00:22]} 23. a4 {[%emt 0:04:25]} a6 {[%emt 0:01:05]} 24. a5 {[%emt 0:01:35]} Ba7 {[%emt 0:00:07]} 25. Ba4+ {[%emt 0:00:26]} Ke7 {[%emt 0:01:00]} 26. Ba3 {[%emt 0:02:58]} Rgg8 {[%emt 0:02:06]} 27. Rb1 {[%emt 0:01:21]} Rc3 {[%emt 0:02:02]} 28. Bc1 {[%emt 0:02:12]} b5 {[%emt 0:02:17]} 29. axb6 {[%emt 0:01:20]} Bxb6 {[%emt 0:00:05]} 30. Ra1 {[%emt 0:04:53]} Ra8 {[%emt 0:02:14]} 31. Bb5 {[%emt 0:01:46]} a5 {[%emt 0:02:59]} 32. bxa5 {[%emt 0:02:23]} Nd6 {[%emt 0:07:48]} 33. Bb2 {[%emt 0:00:42]} Nxb5 {[%emt 0:05:56]} 34. axb6 {[%emt 0:00:52]} Rxa1+ {[%emt 0:07:01]} 35. Bxa1 {[%emt 0:00:05]} Rc6 {[%emt 0:00:08]} 36. Bxd4 {[%emt 0:00:24]} Nxd4 {[%emt 0:00:06]} 37. Nxd4 {[%emt 0:00:06]} Rxb6 {[%emt 0:00:01]} 38. Kh2 {[%emt 0:00:18]} Kd6 {[%emt 0:00:20]} 39. Kg3 {[%emt 0:00:13]} Rb4 {[%emt 0:00:20]} 40. c3 {[%emt 0:00:23]} Rb1 {[%emt 0:00:22]} 41. Kh4 {[%emt 0:31:18]} Rg1 {[%emt 0:36:06]} 42. f3 {[%emt 0:03:34]} Rd1 {[%emt 0:00:54]} 43. Nxe6 {[%emt 0:01:31]} fxe6 {[%emt 0:00:08]} 44. d4 {[%emt 0:00:10]} Rc1 {[%emt 0:00:11]} 45. Kxh5 {[%emt 0:04:12]} Rxc3 {[%emt 0:00:08]} 46. Kg6 {[%emt 0:00:25]} f5 {[%emt 0:00:28]} 47. Kf6 {[%emt 0:00:26]} 1-0

[Event "Gideon Japhet ACP Open 2018"]
[Site "Jerusalem"]
[Date "2018.07.02"]
[Round "2"]
[White "Steinberg, Nitzan"]
[Black "Pravdivetz, Vladimir"]
[Result "1-0"]
[ECO "C02"]
[WhiteElo "2521"]
[BlackElo "1882"]
[Annotator "ChessBase"]
[PlyCount "57"]
[EventDate "2018.07.01"]
[EventType "swiss"]
[EventCountry "ISR"]
[SourceTitle "playchess.com"]
[Source "ChessBase"]
[SourceQuality "1"]
[TimeControl "40/5400+30:1800+30"]

1. e4 {[%emt 0:00:00]} e6 {[%emt 0:01:13]} 2. d4 {[%emt 0:00:00]} d5 {[%emt 0:00:01]} 3. e5 {[%emt 0:01:21]} c5 {[%emt 0:00:01]} 4. c3 {[%emt 0:00:06]} Qb6 {[%emt 0:00:01]} 5. Nf3 {[%emt 0:01:47]} Nc6 {[%emt 0:00:01]} 6. Na3 {[%emt 0:00:08]} cxd4 {[%emt 0:03:06]} 7. cxd4 {[%emt 0:00:06]} Bd7 {[%emt 0:00:41]} 8. Nc2 {[%emt 0:02:53]} Nb4 {[%emt 0:02:14]} 9. Ne3 {[%emt 0:13:55]} Bb5 {[%emt 0:00:51]} 10. a3 {[%emt 0:02:33]} Bxf1 {[%emt 0:05:19]} 11. Kxf1 {[%emt 0:01:13]} Qa6+ {[%emt 0:06:58]} 12. Kg1 {[%emt 0:01:47]} Nd3 {[%emt 0:00:20]} 13. Rb1 {[%emt 0:04:43]} Nxc1 {[%emt 0:02:08]} 14. Rxc1 {[%emt 0:01:35]} Ne7 {[%emt 0:06:00]} 15. h4 {[%emt 0:01:56]} h6 {[%emt 0:10:06]} 16. Rh3 {[%emt 0:04:55]} Ng6 {[%emt 0:06:25]} 17. Rc2 {[%emt 0:05:55]} Nf4 {[%emt 0:04:29]} 18. Rh1 {[%emt 0:02:15]} Ng6 {[%emt 0:03:17]} 19. Qc1 {[%emt 0:08:14]} Be7 {[%emt 0:08:57]} 20. h5 {[%emt 0:02:26]} Nf8 {[%emt 0:00:29]} 21. Rh3 {[%emt 0:05:08]} Nh7 {[%emt 0:03:47]} 22. Rg3 {[%emt 0:04:15]} Rg8 {[%emt 0:04:29]} 23. Ng4 {[%emt 0:03:32]} Rh8 {[%emt 0:01:32]} 24. Nd2 {[%emt 0:05:37]} f5 {[%emt 0:10:17]} 25. exf6 {[%emt 0:02:09]} Nxf6 {[%emt 0:00:52]} 26. Nxf6+ {[%emt 0:08:04]} gxf6 {[%emt 0:00:14]} 27. Rg7 {[%emt 0:02:50]} Rd8 {[%emt 0:09:20]} 28. Rc7 {[%emt 0:01:45]} Bd6 {[%emt 0:01:24]} 29. Rxb7 {[%emt 0:02:18] O-O} 1-0

[Event "Gideon Japhet ACP Open 2018"]
[Site "Jerusalem"]
[Date "2018.07.02"]
[Round "2"]
[White "Zanan, Evgeny"]
[Black "Musyuk, Lior"]
[Result "1-0"]
[ECO "B23"]
[WhiteElo "2497"]
[BlackElo "2160"]
[Annotator "ChessBase"]
[PlyCount "63"]
[EventDate "2018.07.01"]
[EventType "swiss"]
[EventCountry "ISR"]
[SourceTitle "playchess.com"]
[Source "ChessBase"]
[SourceQuality "1"]
[TimeControl "40/5400+30:1800+30"]

1. e4 {[%emt 0:00:00]} c5 {[%emt 0:00:00]} 2. Nc3 {[%emt 0:00:00]} Nc6 {[%emt 0:00:11]} 3. Nge2 {[%emt 0:00:00]} d6 {[%emt 0:01:04]} 4. g3 {[%emt 0:12:58]} g6 {[%emt 0:02:29]} 5. d4 {[%emt 0:01:31]} Bg4 {[%emt 0:06:20]} 6. d5 {[%emt 0:07:22]} Nd4 {[%emt 0:15:30]} 7. Nxd4 {[%emt 0:17:01]} Bxd1 {[%emt 0:02:05]} 8. Bb5+ {[%emt 0:00:07]} Qd7 {[%emt 0:00:44]} 9. Bxd7+ {[%emt 0:00:36]} Kxd7 {[%emt 0:00:01]} 10. Kxd1 {[%emt 0:00:11]} cxd4 {[%emt 0:00:30]} 11. Ne2 {[%emt 0:00:04]} Bg7 {[%emt 0:01:14]} 12. f3 {[%emt 0:07:07]} e6 {[%emt 0:06:16]} 13. dxe6+ {[%emt 0:05:58]} fxe6 {[%emt 0:06:15]} 14. Bd2 {[%emt 0:00:27]} Ne7 {[%emt 0:03:58]} 15. c3 {[%emt 0:00:58]} dxc3 {[%emt 0:01:11]} 16. Nxc3 {[%emt 0:08:04]} Nc6 {[%emt 0:01:01]} 17. f4 {[%emt 0:05:20]} Rac8 {[%emt 0:03:56]} 18. Rc1 {[%emt 0:02:09]} Nd4 {[%emt 0:08:37]} 19. Be3 {[%emt 0:00:32]} Rc4 {[%emt 0:03:13]} 20. Ne2 {[%emt 0:06:30]} Rxc1+ {[%emt 0:02:23]} 21. Nxc1 {[%emt 0:00:07]} Rc8 {[%emt 0:01:24]} 22. Nd3 {[%emt 0:01:51]} Rc4 {[%emt 0:02:14]} 23. e5 {[%emt 0:09:00]} d5 {[%emt 0:04:15]} 24. g4 {[%emt 0:04:37]} b6 {[%emt 0:04:18]} 25. Rg1 {[%emt 0:04:24]} Nc6 {[%emt 0:07:37]} 26. Rg3 {[%emt 0:01:27]} Ra4 {[%emt 0:07:50]} 27. a3 {[%emt 0:00:47]} Ke7 {[%emt 0:00:57]} 28. Bc1 {[%emt 0:02:11]} Re4 {[%emt 0:01:33]} 29. b3 {[%emt 0:01:52]} Kf7 {[%emt 0:03:39]} 30. g5 {[%emt 0:01:14]} Ne7 {[%emt 0:00:35]} 31. Nf2 {[%emt 0:00:04]} Nf5 {[%emt 0:00:54]} 32. Nxe4 {[%emt 0:00:05]} 1-0

[Event "Gideon Japhet ACP Open 2018"]
[Site "Jerusalem"]
[Date "2018.07.02"]
[Round "2"]
[White "Ushenina, Anna"]
[Black "Axelrod, Arie"]
[Result "1-0"]
[ECO "A05"]
[WhiteElo "2447"]
[BlackElo "2269"]
[Annotator "ChessBase"]
[PlyCount "73"]
[EventDate "2018.07.01"]
[EventType "swiss"]
[EventCountry "ISR"]
[SourceTitle "playchess.com"]
[Source "ChessBase"]
[SourceQuality "1"]
[TimeControl "40/5400+30:1800+30"]

1. Nf3 {[%emt 0:01:05]} Nf6 {[%emt 0:00:00]} 2. c4 {[%emt 0:00:26]} g6 {[%emt 0:00:00]} 3. d4 {[%emt 0:00:40]} Bg7 {[%emt 0:00:00]} 4. Nc3 {[%emt 0:00:06]} O-O {[%emt 0:00:11]} 5. e4 {[%emt 0:00:05]} c6 {[%emt 0:01:26]} 6. e5 {[%emt 0:03:28]} Ne8 {[%emt 0:00:23]} 7. Bf4 {[%emt 0:08:15]} d5 {[%emt 0:00:50]} 8. h4 {[%emt 0:09:45]} h5 {[%emt 0:01:14]} 9. Qd2 {[%emt 0:12:05]} Nc7 {[%emt 0:06:27]} 10. b3 {[%emt 0:07:29]} Bg4 {[%emt 0:08:09]} 11. Nh2 {[%emt 0:00:54]} Be6 {[%emt 0:00:35]} 12. Rd1 {[%emt 0:06:22]} Nd7 {[%emt 0:01:49]} 13. c5 {[%emt 0:05:45]} b6 {[%emt 0:01:35]} 14. b4 {[%emt 0:00:35]} a5 {[%emt 0:01:24]} 15. a3 {[%emt 0:00:05]} Qb8 {[%emt 0:02:37]} 16. Be2 {[%emt 0:05:32]} axb4 {[%emt 0:06:38]} 17. axb4 {[%emt 0:00:02]} Ra3 {[%emt 0:01:19]} 18. g4 {[%emt 0:01:13]} bxc5 {[%emt 0:01:32]} 19. bxc5 {[%emt 0:00:13]} Qb4 {[%emt 0:03:56]} 20. Rc1 {[%emt 0:01:49]} hxg4 {[%emt 0:03:30]} 21. Nxg4 {[%emt 0:00:38]} Bxg4 {[%emt 0:07:24]} 22. Bxg4 {[%emt 0:00:09]} Ne6 {[%emt 0:00:25]} 23. Bxe6 {[%emt 0:01:59]} fxe6 {[%emt 0:00:50]} 24. Nb1 {[%emt 0:11:35]} Rb3 {[%emt 0:13:36]} 25. Qxb4 {[%emt 0:01:08]} Rxb4 {[%emt 0:00:02]} 26. Be3 {[%emt 0:00:07]} Rf5 {[%emt 0:02:04]} 27. Ke2 {[%emt 0:02:26]} Rb2+ {[%emt 0:19:23]} 28. Nd2 {[%emt 0:00:44]} Rf8 {[%emt 0:11:37]} 29. Ra1 {[%emt 0:04:06]} Rfb8 {[%emt 0:00:39]} 30. Ra6 {[%emt 0:00:24]} Rc2 {[%emt 0:04:54]} 31. Rxc6 {[%emt 0:00:14]} Rbb2 {[%emt 0:00:21]} 32. Rc7 {[%emt 0:01:30]} Nb8 {[%emt 0:00:23]} 33. Ra1 {[%emt 0:00:32]} Kf7 {[%emt 0:00:38]} 34. Kd3 {[%emt 0:01:40]} Bf8 {[%emt 0:00:27]} 35. Ra8 {[%emt 0:01:33]} Rc1 {[%emt 0:00:40]} 36. Rc8 {[%emt 0:00:55]} Nd7 {[%emt 0:00:29]} 37. c6 {[%emt 0:01:37]} 1-0

[Event "Gideon Japhet ACP Open 2018"]
[Site "Jerusalem"]
[Date "2018.07.02"]
[Round "2"]
[White "Gruenfeld, Yehuda"]
[Black "Bronfman, Shmuel"]
[Result "1-0"]
[ECO "B47"]
[WhiteElo "2419"]
[BlackElo "2108"]
[Annotator "ChessBase"]
[PlyCount "69"]
[EventDate "2018.07.01"]
[EventType "swiss"]
[EventCountry "ISR"]
[SourceTitle "playchess.com"]
[Source "ChessBase"]
[SourceQuality "1"]
[TimeControl "40/5400+30:1800+30"]

1. e4 {[%emt 0:00:00]} c5 {[%emt 0:00:00]} 2. Nf3 {[%emt 0:00:00]} e6 {[%emt 0:00:00]} 3. Nc3 {[%emt 0:00:17]} Nc6 {[%emt 0:00:48]} 4. d4 {[%emt 0:00:44]} cxd4 {[%emt 0:00:07]} 5. Nxd4 {[%emt 0:00:05]} Qc7 {[%emt 0:00:12]} 6. g3 {[%emt 0:00:38]} a6 {[%emt 0:01:53]} 7. Bg2 {[%emt 0:00:06]} Nf6 {[%emt 0:00:52]} 8. O-O {[%emt 0:00:05]} Nxd4 {[%emt 0:06:39]} 9. Qxd4 {[%emt 0:00:12]} Bc5 {[%emt 0:00:08]} 10. Bf4 {[%emt 0:00:56]} d6 {[%emt 0:04:03]} 11. Qd2 {[%emt 0:00:55]} e5 {[%emt 0:06:27]} 12. Be3 {[%emt 0:01:06]} Bb4 {[%emt 0:04:48]} 13. Nb5 {[%emt 0:04:37]} axb5 {[%emt 0:05:12]} 14. Qxb4 {[%emt 0:00:10]} O-O {[%emt 0:01:20]} 15. Qxb5 {[%emt 0:00:44]} Qxc2 {[%emt 0:04:20]} 16. Rfc1 {[%emt 0:01:44]} Qa4 {[%emt 0:00:21]} 17. Qxa4 {[%emt 0:03:02]} Rxa4 {[%emt 0:00:30]} 18. b3 {[%emt 0:00:02]} Ra5 {[%emt 0:05:21]} 19. a4 {[%emt 0:01:29]} Bd7 {[%emt 0:03:28]} 20. Bb6 {[%emt 0:01:20]} Ra6 {[%emt 0:00:53]} 21. a5 {[%emt 0:00:04]} Bc6 {[%emt 0:00:12]} 22. b4 {[%emt 0:02:09]} Bxe4 {[%emt 0:04:34]} 23. Bxe4 {[%emt 0:00:01]} Nxe4 {[%emt 0:00:09]} 24. Rc7 {[%emt 0:00:19]} d5 {[%emt 0:06:08]} 25. Rxb7 {[%emt 0:03:02]} d4 {[%emt 0:01:09]} 26. b5 {[%emt 0:01:32]} Raa8 {[%emt 0:00:06]} 27. a6 {[%emt 0:01:22]} f6 {[%emt 0:13:14]} 28. f3 {[%emt 0:04:01]} Nc3 {[%emt 0:05:36]} 29. a7 {[%emt 0:03:26]} Rfc8 {[%emt 0:03:05]} 30. Bc7 {[%emt 0:04:20]} d3 {[%emt 0:06:40]} 31. Rb8 {[%emt 0:01:38]} d2 {[%emt 0:00:29]} 32. Rxc8+ {[%emt 0:00:28]} Rxc8 {[%emt 0:00:04]} 33. a8=Q {[%emt 0:00:43]} d1=Q+ {[%emt 0:02:55]} 34. Rxd1 {[%emt 0:00:12]} Rxa8 {[%emt 0:00:06]} 35. Rd8+ {Rc8} 1-0